fUST/lending_fUST_20250726
["ID","MTS","AMOUNT","RATE_DAILY","PERIOD"]
[375049026,1753511453440,-490.981,0.00019816,2]
[375049028,1753511453450,-648.0,0.00019816,2]
[375049030,1753511453459,-153.0,0.00019836,2]
[375049032,1753511453469,-306.8870784,0.0001989,2]
[375049034,1753511453478,-153.0,0.0001989,2]
[375049036,1753511453487,-45.891414,0.0001989,2]
[375049043,1753511453535,-500.00670064,0.00019078,2]
[375049071,1753511453795,-14.35665282,0.00019078,2]
[375049073,1753511453805,-150.68546691,0.00019078,2]
[375049075,1753511453815,-150.6854669,0.00019169,2]
[375049077,1753511453824,-151.0,0.00019452,2]
[375049079,1753511453833,-107.108586,0.0001989,2]
[375049081,1753511453842,-1500.0,0.00019973,7]
[375049083,1753511453851,-447.74092137,0.00019973,7]
[375049828,1753512026910,274.850169,0.00013699,2]
[375049830,1753512219157,1537.1658301,0.00025913,120]
[375049832,1753512447135,-787.0,0.00019077,2]
[375049833,1753512447157,-300.0,0.00019077,2]
[375049834,1753512447178,-150.6854669,0.00019078,2]
[375049835,1753512447200,-13235.75483616,0.00019078,2]
[375049922,1753512632803,-263.207584,0.00018177,2]
[375049925,1753512632813,-436.648416,0.00019,2]
[375049927,1753512632825,-3002.97839622,0.00019,2]
[375049929,1753512632834,-183.83769596,0.00019078,2]
[375049931,1753512632842,-215.0738,0.00019166,2]
[375049933,1753512632850,-5948.55452272,0.0001917,2]
[375049935,1753512632861,-1053.86682041,0.0001917,2]
[375049937,1753512632873,-485.32137777,0.0001917,2]
[375049940,1753512632895,-1255.9542598,0.0001917,2]
[375049974,1753512638735,-27524.9361378,0.0001917,2]
[375049976,1753512638747,-11793.25193487,0.0001917,2]
[375050172,1753512640646,-29235.48129048,0.0001917,2]
[375050174,1753512640658,-1820.15365623,0.0001917,2]
[375050178,1753512640682,-368.43763188,0.0001917,2]
[375050757,1753512646645,-2377.62961461,0.0001917,2]
[375050760,1753512646657,-499.86972676,0.0001917,2]
[375050762,1753512646669,-4361.95012443,0.0001917,2]
[375050764,1753512646678,-385.5605899,0.00019176,2]
[375050766,1753512646687,-500.0,0.00019176,2]
[375050768,1753512646697,-500.0,0.00019176,2]
[375050770,1753512646707,-500.0,0.00019176,2]
[375050772,1753512646717,-500.0,0.00019176,2]
[375050774,1753512646728,-502.77930159,0.00019176,2]
[375050776,1753512646738,-500.0,0.00019176,2]
[375050778,1753512646747,-300.0,0.00019176,2]
[375050780,1753512646756,-500.0,0.00019176,2]
[375050782,1753512646766,-500.0,0.00019176,2]
[375050784,1753512646777,-500.0,0.00019176,2]
[375050786,1753512646787,-500.0,0.00019176,2]
[375050788,1753512646797,-500.0,0.00019176,2]
[375050790,1753512646806,-500.0,0.00019176,2]
[375050792,1753512646815,-250.0,0.00019176,2]
[375050794,1753512646824,-8871.52539215,0.00019177,2]
[375054461,1753512978805,28970.1698227,0.00026027,120]
[375054462,1753513029679,261.10766,0.00013699,2]
[375054464,1753513448063,1000.0,0.00026,120]
[375054465,1753513581741,230.4,0.00026,120]
[375054466,1753513632091,-222.6188016,0.00018498,2]
[375054467,1753513632112,-300.29027629,0.00018909,2]
[375054468,1753513632132,-5261.37132828,0.00019,2]
[375054469,1753513632153,-173.96810393,0.00019068,2]
[375054470,1753513649426,-1026.03189607,0.00019068,2]
[375054471,1753513649448,-300.0,0.00019069,2]
[375054472,1753513649469,-300.0,0.00019069,2]
[375054473,1753513649491,-7677.27991867,0.0001907,2]
[375054542,1753513832941,-300.0,0.00019069,2]
[375054544,1753513832951,-24459.10149461,0.0001907,2]
[375054546,1753513832960,-150.6854669,0.00019078,2]
[375054548,1753513832970,-215.0738,0.00019159,2]
[375054550,1753513832979,-306.19,0.00019168,3]
[375054551,1753513832989,-333.33,0.00019168,3]
[375054553,1753513832998,-166.67,0.00019168,3]
[375054555,1753513833008,-500.02,0.00019168,3]
[375054557,1753513833018,-4967.29001591,0.00019168,2]
[375054559,1753513833027,-500.0,0.00019169,2]
[375054561,1753513833038,-500.0,0.00019169,2]
[375054563,1753513833047,-469.34790659,0.00019169,2]
[375054565,1753513833057,-505.10273347,0.00019173,2]
[375054567,1753513833067,-500.0,0.00019173,2]
[375054569,1753513833076,-500.0,0.00019173,2]
[375054571,1753513833086,-501.15255493,0.00019173,2]
[375054573,1753513833095,-506.76482346,0.00019173,2]
[375054575,1753513833105,-500.0,0.00019173,2]
[375054577,1753513833114,-281.0996548,0.00019173,2]
[375054579,1753513833124,-500.0,0.00019173,2]
[375054581,1753513833134,-501.06382467,0.00019173,2]
[375054583,1753513833143,-500.78204456,0.00019173,2]
[375054585,1753513833153,-631.201788,0.00019173,2]
[375054587,1753513833163,-500.0,0.00019173,2]
[375054589,1753513833172,-500.0,0.00019173,2]
[375054591,1753513833182,-500.0,0.00019173,2]
[375054593,1753513833191,-500.0,0.00019173,2]
[375054595,1753513833200,-501.03139262,0.00019173,2]
[375054597,1753513833210,-500.0,0.00019173,2]
[375054599,1753513833219,-500.0,0.00019173,2]
[375054601,1753513833229,-500.0,0.00019173,2]
[375054603,1753513833239,-504.8359772,0.00019173,2]
[375054605,1753513833248,-500.0,0.00019173,2]
[375054607,1753513833258,-500.0,0.00019173,2]
[375054609,1753513833267,-500.0,0.00019177,2]
[375054611,1753513833277,-151.0,0.00019177,2]
[375054613,1753513833287,-395.33688531,0.00019177,2]
[375054615,1753513833297,-1111.53438056,0.00019178,2]
[375054617,1753513833307,-221.914402,0.00019178,2]
[375054619,1753513833317,-151.0,0.00019178,2]
[375054621,1753513833326,-151.0,0.00019178,2]
[375054623,1753513833336,-151.0,0.00019178,2]
[375054625,1753513833346,-151.0,0.00019178,2]
[375054627,1753513833355,-460.0,0.00019178,2]
[375054629,1753513833365,-331.3876615,0.00019178,2]
[375054631,1753513833375,-460.0,0.00019178,2]
[375054633,1753513833384,-460.0,0.00019178,2]
[375054635,1753513833394,-460.0,0.00019178,2]
[375054637,1753513833404,-460.0,0.00019178,2]
[375054639,1753513833413,-460.0,0.00019178,2]
[375054641,1753513833423,-465.15393098,0.00019178,2]
[375054643,1753513833432,-460.0,0.00019178,2]
[375054645,1753513833442,-243.11808252,0.00019178,2]
[375054647,1753513833452,-1000.0,0.00019178,2]
[375054649,1753513833461,-460.0,0.00019178,2]
[375054651,1753513833470,-462.84543191,0.00019178,2]
[375054653,1753513833480,-460.0,0.00019178,2]
[375054655,1753513833489,-461.98701907,0.00019178,2]
[375054657,1753513833499,-466.36169614,0.00019178,2]
[375054659,1753513833509,-460.0,0.00019178,2]
[375054661,1753513833518,-241.82425928,0.00019178,2]
[375054663,1753513833528,-460.0,0.00019178,2]
[375054665,1753513833538,-460.0,0.00019178,2]
[375054667,1753513833548,-460.0,0.00019178,2]
[375054669,1753513833557,-460.0,0.00019178,2]
[375054671,1753513833566,-460.0,0.00019178,2]
[375054673,1753513833575,-151.0,0.00019178,2]
[375054675,1753513833584,-460.0,0.00019178,2]
[375054677,1753513833596,-201.10812,0.00019178,2]
[375054679,1753513833606,-151.0,0.00019178,2]
[375054692,1753513833725,-402.60057284,0.00019178,2]
[375054694,1753513833738,-462.3454776,0.00019178,2]
[375054696,1753513833748,-460.0,0.00019178,2]
[375054698,1753513833758,-151.0,0.00019178,2]
[375054700,1753513833767,-460.0,0.00019178,2]
[375054702,1753513833778,-460.0,0.00019178,2]
[375054704,1753513833787,-460.0,0.00019178,2]
[375054706,1753513833797,-460.0,0.00019178,2]
[375054708,1753513833807,-204.9555376,0.00019178,2]
[375054710,1753513833817,-460.0,0.00019178,2]
[375054712,1753513833827,-460.0,0.00019178,2]
[375054728,1753513834044,-460.0,0.00019178,2]
[375054729,1753513834053,-461.23990033,0.00019178,2]
[375054730,1753513834063,-460.0,0.00019178,2]
[375054732,1753513834072,-460.0,0.00019178,2]
[375054734,1753513834082,-460.0,0.00019178,2]
[375054736,1753513834091,-460.0,0.00019178,2]
[375054738,1753513834111,-460.0,0.00019178,2]
[375054740,1753513834121,-460.0,0.00019178,2]
[375054742,1753513834130,-463.40792529,0.00019178,2]
[375054744,1753513834139,-460.0,0.00019178,2]
[375054746,1753513834149,-460.0,0.00019178,2]
[375054748,1753513834158,-464.20132452,0.00019178,2]
[375054750,1753513834168,-460.0,0.00019178,2]
[375054752,1753513834177,-460.0,0.00019178,2]
[375054754,1753513834187,-274.64888894,0.00019178,2]
[375054756,1753513834196,-460.0,0.00019178,2]
[375054758,1753513834205,-460.0,0.00019178,2]
[375054760,1753513834214,-460.0,0.00019178,2]
[375054762,1753513834223,-460.0,0.00019178,2]
[375054764,1753513834232,-335.54966154,0.00019178,2]
[375054766,1753513834242,-460.0,0.00019178,2]
[375054768,1753513834251,-463.28158413,0.00019178,2]
[375054770,1753513834260,-460.0,0.00019178,2]
[375054771,1753513834270,-460.0,0.00019178,2]
[375054772,1753513834280,-460.0,0.00019178,2]
[375054773,1753513834289,-460.0,0.00019178,2]
[375054774,1753513834299,-460.0,0.00019178,2]
[375054775,1753513834309,-462.27690676,0.00019178,2]
[375054776,1753513834317,-460.0,0.00019178,2]
[375054777,1753513834326,-463.20555851,0.00019178,2]
[375054778,1753513834336,-276.27711153,0.00019178,2]
[375054779,1753513834345,-500.0,0.00019178,2]
[375054780,1753513834355,-374.56816575,0.00019178,2]
[375054782,1753513834366,-460.0,0.00019178,2]
[375054783,1753513834382,-460.0,0.00019178,2]
[375054785,1753513834391,-460.0,0.00019178,2]
[375054787,1753513834403,-461.26444577,0.00019178,2]
[375054789,1753513834420,-460.0,0.00019178,2]
[375054792,1753513834430,-462.87804913,0.00019178,2]
[375054793,1753513834440,-151.0,0.00019178,2]
[375054796,1753513834449,-460.0,0.00019178,2]
[375054797,1753513834459,-460.0,0.00019178,2]
[375054799,1753513834468,-462.12385507,0.00019178,2]
[375054801,1753513834477,-460.0,0.00019178,2]
[375054803,1753513834487,-460.0,0.00019178,2]
[375054805,1753513834496,-460.0,0.00019178,2]
[375054807,1753513834506,-466.28586178,0.00019178,2]
[375054809,1753513834515,-463.78973399,0.00019178,2]
[375054811,1753513834524,-166.37963201,0.00019178,2]
[375054813,1753513834534,-153.020978,0.00019178,2]
[375054815,1753513834543,-151.0,0.00019178,2]
[375054818,1753513834553,-275.438568,0.00019178,2]
[375054820,1753513834562,-460.0,0.00019178,2]
[375054822,1753513834571,-461.198791,0.00019178,2]
[375054824,1753513834581,-177.62326149,0.00019178,2]
[375054826,1753513834590,-460.0,0.00019178,2]
[375054828,1753513834599,-151.0,0.00019178,2]
[375054830,1753513834608,-460.0,0.00019178,2]
[375054832,1753513834618,-151.0,0.00019178,2]
[375054834,1753513834627,-505.66,0.00019178,2]
[375054836,1753513834637,-460.0,0.00019178,2]
[375054838,1753513834647,-460.0,0.00019178,2]
[375054840,1753513834657,-460.0,0.00019178,2]
[375054841,1753513834666,-460.0,0.00019178,2]
[375054843,1753513834675,-151.0,0.00019178,2]
[375054845,1753513834684,-151.0,0.00019178,2]
[375054847,1753513834693,-460.0,0.00019178,2]
[375054849,1753513834706,-460.0,0.00019178,2]
[375054851,1753513834715,-460.0,0.00019178,2]
[375054853,1753513834725,-460.0,0.00019178,2]
[375054855,1753513834735,-460.0,0.00019178,2]
[375054857,1753513834744,-460.0,0.00019178,2]
[375054859,1753513834754,-460.0,0.00019178,2]
[375054861,1753513834763,-151.0,0.00019178,2]
[375054863,1753513834772,-151.0,0.00019178,2]
[375054865,1753513834782,-258.75095088,0.00019178,2]
[375054867,1753513834791,-460.0,0.00019178,2]
[375054869,1753513834801,-460.0,0.00019178,2]
[375054871,1753513834809,-460.0,0.00019178,2]
[375054873,1753513834819,-151.0,0.00019178,2]
[375054874,1753513834828,-460.0,0.00019178,2]
[375054876,1753513834838,-460.0,0.00019178,2]
[375054878,1753513834847,-460.0,0.00019178,2]
[375054880,1753513834856,-460.0,0.00019178,2]
[375054881,1753513834866,-460.39957395,0.00019178,2]
[375054882,1753513834875,-460.0,0.00019178,2]
[375054883,1753513834885,-596.9,0.00019178,2]
[375054884,1753513834894,-460.0,0.00019178,2]
[375054885,1753513834903,-460.0,0.00019178,2]
[375054886,1753513834913,-461.38332845,0.00019178,2]
[375054887,1753513834923,-162.378101,0.00019178,2]
[375054888,1753513834932,-460.0,0.00019178,2]
[375054889,1753513834942,-456.99599647,0.00019178,2]
[375054890,1753513834952,-162.378101,0.00019178,2]
[375054891,1753513834961,-460.0,0.00019178,2]
[375054892,1753513834970,-460.0,0.00019178,2]
[375054893,1753513834980,-538.11110649,0.00019178,2]
[375054894,1753513834989,-460.0,0.00019178,2]
[375054895,1753513834999,-460.0,0.00019178,2]
[375054896,1753513835009,-460.0,0.00019178,2]
[375054897,1753513835018,-460.0,0.00019178,2]
[375054898,1753513835028,-460.72726183,0.00019178,2]
[375054899,1753513835038,-460.0,0.00019178,2]
[375054900,1753513835047,-465.30515587,0.00019178,2]
[375054901,1753513835057,-299.3571905,0.00019178,2]
[375054902,1753513835066,-460.0,0.00019178,2]
[375054903,1753513835076,-460.0,0.00019178,2]
[375054904,1753513835085,-460.0,0.00019178,2]
[375054905,1753513835095,-460.0,0.00019178,2]
[375054906,1753513835105,-460.0,0.00019178,2]
[375054907,1753513835114,-460.0,0.00019178,2]
[375054908,1753513835124,-461.75125942,0.00019178,2]
[375054909,1753513835133,-460.0,0.00019178,2]
[375054910,1753513835143,-751.55,0.00019178,2]
[375054911,1753513835152,-460.0,0.00019178,2]
[375054912,1753513835162,-460.0,0.00019178,2]
[375054913,1753513835171,-460.0,0.00019178,2]
[375054914,1753513835181,-460.0,0.00019178,2]
[375054915,1753513835191,-460.0,0.00019178,2]
[375054916,1753513835201,-891.56,0.00019178,2]
[375054917,1753513835210,-460.0,0.00019178,2]
[375054918,1753513835220,-460.0,0.00019178,2]
[375054919,1753513835229,-460.0,0.00019178,2]
[375054920,1753513835238,-460.0,0.00019178,2]
[375054921,1753513835248,-281.18009666,0.00019178,2]
[375054922,1753513835258,-460.0,0.00019178,2]
[375054923,1753513835268,-460.0,0.00019178,2]
[375054924,1753513835277,-460.0,0.00019178,2]
[375054925,1753513835287,-460.0,0.00019178,2]
[375054926,1753513835296,-460.0,0.00019178,2]
[375054927,1753513835306,-460.0,0.00019178,2]
[375054928,1753513835315,-460.0,0.00019178,2]
[375054929,1753513835324,-461.8751412,0.00019178,2]
[375054930,1753513835334,-460.0,0.00019178,2]
[375054931,1753513835343,-460.0,0.00019178,2]
[375054932,1753513835353,-500.0,0.00019178,2]
[375054933,1753513835362,-460.0,0.00019178,2]
[375054934,1753513835372,-500.0,0.00019178,2]
[375054935,1753513835381,-500.0,0.00019178,2]
[375054936,1753513835391,-500.0,0.00019178,2]
[375054937,1753513835400,-500.0,0.00019178,2]
[375054938,1753513835410,-811.17,0.00019178,2]
[375054939,1753513835420,-500.0,0.00019178,2]
[375054940,1753513835429,-500.0,0.00019178,2]
[375054941,1753513835438,-500.0,0.00019178,2]
[375054942,1753513835448,-500.0,0.00019178,2]
[375054943,1753513835458,-471.03334323,0.00019178,2]
[375054944,1753513835467,-174.7614543,0.00019178,2]
[375054945,1753513835476,-151.0,0.00019178,2]
[375054946,1753513835485,-460.0,0.00019178,2]
[375054947,1753513835494,-460.0,0.00019178,2]
[375054948,1753513835504,-460.0,0.00019178,2]
[375054949,1753513835513,-460.0,0.00019178,2]
[375054950,1753513835522,-74.42735099,0.00019178,2]
[375054951,1753513835543,-387.14138555,0.00019178,2]
[375054952,1753513835552,-460.0,0.00019178,2]
[375054953,1753513835561,-460.0,0.00019178,2]
[375054954,1753513835571,-467.6280778,0.00019178,2]
[375054955,1753513835580,-460.0,0.00019178,2]
[375054956,1753513835589,-460.0,0.00019178,2]
[375054957,1753513835599,-460.0,0.00019178,2]
[375054958,1753513835608,-328.2014028,0.00019178,2]
[375054959,1753513835617,-460.0,0.00019178,2]
[375054960,1753513835628,-460.0,0.00019178,2]
[375054961,1753513835638,-460.0,0.00019178,2]
[375054962,1753513835647,-464.27552028,0.00019178,2]
[375054963,1753513835656,-463.15055095,0.00019178,2]
[375054964,1753513835666,-460.0,0.00019178,2]
[375054965,1753513835676,-462.43240033,0.00019178,2]
[375054966,1753513835685,-551.28152601,0.00019178,2]
[375054967,1753513835696,-465.17308828,0.00019178,2]
[375054968,1753513835715,-460.0,0.00019178,2]
[375054969,1753513835728,-365.06269812,0.00019178,2]
[375054970,1753513835738,-460.0,0.00019178,2]
[375054971,1753513835747,-460.0,0.00019178,2]
[375054972,1753513835756,-460.0,0.00019178,2]
[375054973,1753513835766,-460.0,0.00019178,2]
[375054974,1753513835776,-460.0,0.00019178,2]
[375054975,1753513835785,-460.0,0.00019178,2]
[375054976,1753513835795,-460.0,0.00019178,2]
[375054977,1753513835805,-554.16,0.00019178,2]
[375054978,1753513835814,-460.0,0.00019178,2]
[375054979,1753513835825,-460.0,0.00019178,2]
[375054980,1753513835834,-460.0,0.00019178,2]
[375054981,1753513835844,-460.0,0.00019178,2]
[375054982,1753513835855,-460.0,0.00019178,2]
[375054983,1753513835864,-460.0,0.00019178,2]
[375054984,1753513835874,-465.30767369,0.00019178,2]
[375054985,1753513835884,-460.0,0.00019178,2]
[375054986,1753513835894,-472.47293805,0.00019178,2]
[375054987,1753513835903,-596.0,0.00019178,2]
[375054988,1753513835913,-476.99198081,0.00019178,2]
[375054989,1753513835923,-464.74114331,0.00019178,2]
[375054990,1753513835932,-460.0,0.00019178,2]
[375054991,1753513835942,-460.0,0.00019178,2]
[375054992,1753513835951,-460.0,0.00019178,2]
[375054993,1753513835960,-460.0,0.00019178,2]
[375054994,1753513835970,-469.14287676,0.00019178,2]
[375054995,1753513835979,-1094.65,0.00019178,2]
[375054996,1753513835988,-151.0,0.00019178,2]
[375054997,1753513835998,-152.42810281,0.00019178,2]
[375054998,1753513836008,-151.0,0.00019178,2]
[375054999,1753513836018,-460.0,0.00019178,2]
[375055000,1753513836028,-460.0,0.00019178,2]
[375055001,1753513836037,-463.83762708,0.00019178,2]
[375055002,1753513836047,-203.707735,0.00019178,2]
[375055003,1753513836145,-464.82710296,0.00019178,2]
[375055004,1753513836154,-509.73672316,0.00019178,2]
[375055005,1753513836164,-460.0,0.00019178,2]
[375055006,1753513836173,-460.0,0.00019178,2]
[375055007,1753513836182,-1164.28,0.00019178,2]
[375055008,1753513836191,-460.0,0.00019178,2]
[375055009,1753513836200,-151.0,0.00019178,2]
[375055010,1753513836210,-471.42265284,0.00019178,2]
[375055011,1753513836220,-1086.92,0.00019178,2]
[375055012,1753513836229,-151.0,0.00019178,2]
[375055013,1753513836238,-209.367194,0.00019178,2]
[375055014,1753513836248,-151.0,0.00019178,2]
[375055015,1753513836257,-209.367194,0.00019178,2]
[375055016,1753513836266,-461.48849038,0.00019178,2]
[375055017,1753513836276,-327.21019509,0.00019178,2]
[375055018,1753513836286,-460.0,0.00019178,2]
[375055019,1753513836295,-151.0,0.00019178,2]
[375055020,1753513836304,-607.0,0.00019178,2]
[375055021,1753513836314,-209.367194,0.00019178,2]
[375055022,1753513836323,-460.0,0.00019178,2]
[375055023,1753513836332,-209.367194,0.00019178,2]
[375055024,1753513836342,-460.0,0.00019178,2]
[375055025,1753513836352,-731.31,0.00019178,2]
[375055026,1753513836361,-460.0,0.00019178,2]
[375055027,1753513836371,-632.24,0.00019178,2]
[375055028,1753513836382,-458.6307424,0.00019178,2]
[375055029,1753513836392,-460.0,0.00019178,2]
[375055030,1753513836402,-460.0,0.00019178,2]
[375055031,1753513836419,-151.0,0.00019178,2]
[375055032,1753513836435,-462.60087915,0.00019178,2]
[375055033,1753513836444,-460.0,0.00019178,2]
[375055034,1753513836454,-460.0,0.00019178,2]
[375055035,1753513836463,-460.0,0.00019178,2]
[375055036,1753513836472,-460.0,0.00019178,2]
[375055037,1753513836481,-460.0,0.00019178,2]
[375055038,1753513836490,-460.0,0.00019178,2]
[375055039,1753513836500,-460.0,0.00019178,2]
[375055040,1753513836509,-460.0,0.00019178,2]
[375055041,1753513836519,-463.44161823,0.00019178,2]
[375055042,1753513836529,-460.0,0.00019178,2]
[375055043,1753513836538,-460.0,0.00019178,2]
[375055044,1753513836548,-460.0,0.00019178,2]
[375055045,1753513836557,-462.5965178,0.00019178,2]
[375055046,1753513836567,-463.79380061,0.00019178,2]
[375055047,1753513836577,-460.0,0.00019178,2]
[375055048,1753513836586,-460.0,0.00019178,2]
[375055049,1753513836596,-460.0,0.00019178,2]
[375055050,1753513836606,-1716.22,0.00019178,2]
[375055051,1753513836615,-461.67519469,0.00019178,2]
[375055052,1753513836624,-460.0,0.00019178,2]
[375055053,1753513836633,-461.29578883,0.00019178,2]
[375055054,1753513836642,-460.0,0.00019178,2]
[375055055,1753513836652,-460.0,0.00019178,2]
[375055056,1753513836661,-460.0,0.00019178,2]
[375055057,1753513836671,-460.0,0.00019178,2]
[375055058,1753513836681,-460.0,0.00019178,2]
[375055059,1753513836690,-460.0,0.00019178,2]
[375055060,1753513836703,-460.0,0.00019178,2]
[375055061,1753513836714,-460.0,0.00019178,2]
[375055062,1753513836724,-460.0,0.00019178,2]
[375055063,1753513836733,-466.7341785,0.00019178,2]
[375055064,1753513836743,-460.0,0.00019178,2]
[375055065,1753513836752,-460.0,0.00019178,2]
[375055066,1753513836761,-500.0,0.00019178,2]
[375055067,1753513836771,-500.0,0.00019178,2]
[375055068,1753513836780,-500.0,0.00019178,2]
[375055069,1753513836790,-500.0,0.00019178,2]
[375055070,1753513836799,-500.0,0.00019178,2]
[375055071,1753513836809,-466.42093496,0.00019178,2]
[375055072,1753513836818,-500.0,0.00019178,2]
[375055073,1753513836828,-500.0,0.00019178,2]
[375055074,1753513836838,-625.55426243,0.00019178,2]
[375055075,1753513836848,-460.0,0.00019178,2]
[375055076,1753513836857,-273.91261486,0.00019178,2]
[375055077,1753513836867,-460.0,0.00019178,2]
[375055078,1753513836876,-460.0,0.00019178,2]
[375055079,1753513836886,-460.0,0.00019178,2]
[375055080,1753513836895,-224.37187158,0.00019178,2]
[375055081,1753513836905,-463.054452,0.00019178,2]
[375055082,1753513836914,-460.0,0.00019178,2]
[375055083,1753513836924,-460.0,0.00019178,2]
[375055084,1753513836933,-460.0,0.00019178,2]
[375055085,1753513836943,-460.0,0.00019178,2]
[375055086,1753513836952,-460.0,0.00019178,2]
[375055087,1753513836962,-284.15522117,0.00019178,2]
[375055088,1753513836972,-471.12003704,0.00019178,2]
[375055089,1753513836981,-460.0,0.00019178,2]
[375055090,1753513836991,-416.53792389,0.00019178,2]
[375055091,1753513837000,-460.0,0.00019178,2]
[375055092,1753513837010,-460.0,0.00019178,2]
[375055093,1753513837019,-460.0,0.00019178,2]
[375055094,1753513837029,-460.0,0.00019178,2]
[375055095,1753513837038,-460.0,0.00019178,2]
[375055096,1753513837047,-11360.1,0.00019178,2]
[375055097,1753513837057,-460.0,0.00019178,2]
[375055098,1753513837066,-460.0,0.00019178,2]
[375055099,1753513837075,-460.0,0.00019178,2]
[375055100,1753513837085,-462.23569264,0.00019178,2]
[375055101,1753513837094,-465.06,0.00019178,2]
[375055102,1753513837103,-460.0,0.00019178,2]
[375055103,1753513837113,-460.0,0.00019178,2]
[375055104,1753513837122,-460.0,0.00019178,2]
[375055105,1753513837132,-159.307034,0.00019178,2]
[375055106,1753513837141,-159.307034,0.00019178,2]
[375055107,1753513837151,-460.0,0.00019178,2]
[375055108,1753513837160,-948.9,0.00019178,2]
[375055109,1753513837170,-460.0,0.00019178,2]
[375055110,1753513837179,-278.166767,0.00019178,2]
[375055111,1753513837189,-460.0,0.00019178,2]
[375055112,1753513837199,-151.0,0.00019178,2]
[375055113,1753513837208,-4412.3,0.00019178,2]
[375055114,1753513837218,-159.307034,0.00019178,2]
[375055115,1753513837227,-151.0,0.00019178,2]
[375055116,1753513837237,-159.307034,0.00019178,2]
[375055117,1753513837247,-155.00007475,0.00019178,2]
[375055118,1753513837256,-535.28924959,0.00019178,2]
[375055119,1753513837266,-460.0,0.00019178,2]
[375055120,1753513837275,-1693.12,0.00019178,2]
[375055121,1753513837284,-460.0,0.00019178,2]
[375055122,1753513837294,-460.0,0.00019178,2]
[375055123,1753513837303,-460.0,0.00019178,2]
[375055124,1753513837312,-912.47,0.00019178,2]
[375055125,1753513837322,-151.0,0.00019178,2]
[375055126,1753513837331,-164.449512,0.00019178,2]
[375055127,1753513837340,-460.0,0.00019178,2]
[375055128,1753513837350,-460.0,0.00019178,2]
[375055129,1753513837359,-151.0,0.00019178,2]
[375055130,1753513837369,-460.0,0.00019178,2]
[375055131,1753513837378,-368.56171095,0.00019178,2]
[375055132,1753513837387,-2772.94,0.00019178,2]
[375055133,1753513837397,-460.0,0.00019178,2]
[375055134,1753513837407,-564.21,0.00019178,2]
[375055135,1753513837417,-460.0,0.00019178,2]
[375055136,1753513837426,-231.25556241,0.00019178,2]
[375055155,1753513838738,-263.2075845,0.00018166,2]
[375055157,1753513838748,-500.0,0.00019168,2]
[375055158,1753513838757,-500.0,0.00019168,2]
[375055161,1753513838766,-500.0,0.00019168,2]
[375055163,1753513838775,-500.0,0.00019168,2]
[375055164,1753513838786,-500.0,0.00019168,2]
[375055167,1753513838795,-500.0,0.00019168,2]
[375055168,1753513838805,-478.96471815,0.00019168,2]
[375055173,1753513838841,-21.03528185,0.00019168,2]
[375055175,1753513838850,-217.04634423,0.00019168,2]
[375055177,1753513838859,-500.0,0.00019168,2]
[375055179,1753513838868,-369.88899408,0.00019168,2]
[375055181,1753513838878,-500.0,0.00019168,2]
[375055183,1753513838887,-500.0,0.00019168,2]